Workbook

Sheet Readme
B5: Excel-Tabelle
B6: Diese Excel-Tabelle berechnet eine "Trend-Percentage", welche angibt
C7: - wie stark der Trend ist (Quantität), sowie
C8: - wie gut der Trend ist (Qualität).
B10: Je stärker und je ausgeprägter der Trend ist, desto höher ist der Prozentsatz.
B11: Definition: Ein "guter" Trend ist ein Trend
C12: a) mit wenigen und
C13: b) mit geringen Schwankungen in die Gegenrichtung.
B15: Zu beachten ist, dass das Analyseergebnis einerseits das Trendverhalten über den gesamten Zeitraum (1 Börsenjahr) berechnet, andererseits
B16: zusätzlich noch das Trendverhalten der letzten 40 Börsentage darstellt.
B17: Ein Analyseergebnis wie zum Beispiel "Abwärtstrend, zuletzt stabiler Aufwärtstrend" bedeutet also, dass über den gesamten Zeitraum ein
B18: Abwärtstrend, in den letzten 40 Börsentagen jedoch ein stabiler Aufwärtstrend vorliegt.
B20: Es können nicht alle Ausprägungen dargstellt werden, da sonst die Excel-Formel zu lang geworden wäre.
B23: Damit das Programm funktioniert, muss das Excel-Add-in "Analyse-Funktionen" (Datei Analys32.xll) installiert sein. Die Installation wird automatisch
B24: beim Laden der Tabelle durchgeführt. Wenn die Datei nicht auf Ihrem Computer vorhanden ist: siehe Excel-Menü "Extras |Add-ins".
B26: Das Programm arbeitet mit Zufallskursen, wobei Sie die Trendstärke einstellen können:
C27: In Zelle C1 steht standardmäßig 50%, was bedeutet, dass die Kursentwicklung rein zufällig ist.
C28: Geben Sie in Zelle C1 beispielsweise 30% oder einen anderen Prozentwert <50% ein, werden Kursentwicklungen mit einem signifikanten Aufwärtstrend erzeugt.
C29: Prozentwerte >50% resultieren in einem signifikanten Abwärtstrend.
B31: Fazit
B32: Neue Ansätze am Fondsmarkt dienen der Absicherung Ihres Wettbewerbsvorteils.
B33: Die Möglichkeit, die Märkte anhand einer einzigen Kennzahl zu charakterisieren, ist ein wertvolles Instrument in den Händen eines Vermögensverwalters.
B35: Freundliche Grüße,
B37: Thomas Pflügl
B38: ______________________________________________________________________________________________________________________________________
B40: Thomas Pflügl - Wertpapier-Research | K40: © Copyright: | M40: Thomas Pflügl, 2010
B42: e-mail:
C43: thomas.pfluegl@aon.at
B44: World-Wide-Web:
C45: https://thomaspfluegl.com/tips
B46: ______________________________________________________________________________________________________________________________________

Sheet Trend-Test
D1: 0.5 | S1: =IF(AND(T1<=2,T1>0),5,T1) -> 60 | T1: =RANDBETWEEN(10,80)/1 -> 60
F2: Analyseergebnis: | H2: =IF(AND(ABS(G32)<20%,ABS(G37)<20%),"Seitwärts",IF(AND(G32>50%,G37>50%),"stabiler Aufwärtstrend",IF(AND(G32>50%,G37>20%,G37<50%),"Aufwärtstrend, zuletzt flacher",IF(AND(G32<-50%,G37<-50%),"stabiler Abwärtstrend",IF(AND(G32<-50%,G37<-20%,G37>-50%),"Abwärtstrend, zuletzt flacher",""))))&IF(AND(ABS(G32)<10%,G37>30%),"Seitwärts, zuletzt stabiler Aufwärtstrend",IF(AND(ABS(G32)<10%,G37>30%),"Seitwärts, zuletzt stabiler Aufwärtstrend",IF(AND(G37>30%,ABS(G32)<50%),"zuletzt stabiler Aufwärtstrend",IF(AND(G37<-30%,ABS(G32)<50%),"zuletzt stabiler Abwärtstrend",IF(AND(G32>40%,G37<-50%),"Aufwärtstrend, zuletzt stabiler Abwärtstrend",IF(AND(G32<-40%,G37>50%),"Abwärtstrend, zuletzt stabiler Aufwärtstrend",""))))))&IF(AND(G32>50%,ABS(G37)<20%),"stabiler Aufwärtstrend, zuletzt Seitwärts",IF(AND(G32<-50%,ABS(G37)<20%),"stabiler Abwärtstrend, zuletzt Seitwärts",IF(OR(AND(G32>30%,G32<50%,G37<-30%,G37>-50%),AND(G32<-30%,G32>-50%,G37>30%,G37<50%),AND(ABS(G32)<30%,ABS(G37)<30%)),"Inkonsistent","")))) -> Aufwärtstrend, zuletzt flacher | S2: =IF(T2<=5,RANDBETWEEN(10,20),IF(T2>T1,MAX(RANDBETWEEN(10,20),T1*RANDBETWEEN(20,100)/100),T2+RANDBETWEEN(10,80)/10)) -> 33.3 | T2: =MAX(RANDBETWEEN(10,30),ABS(RAND()*100-$T$1)) -> 29
F5: Klicken Sie auf den Chart oder drücken Sie "F9" um eine neue Zeitreihe zu berechnen.
B6: # | C6: Date | D6: Close | S6: Random | U6: 40 days | W6: #
B7: 1 | C7: 2004-01-01 | D7: 1000 | S7: =RAND() -> 0.2309193484 | U7: =NA() ->  | W7: 1
B8: =B7+1 -> 2 | C8: 2004-01-02 | D8: =IF(S8>$D$1,D7+D7*RAND()/$S$2,IF(S8<$D$1,D7-D7*RAND()/$S$2)) -> 997.6307263 | S8: 0.1863376601 | U8: =NA() ->  | W8: =W7+1 -> 2
B9: 3 | C9: 2004-01-05 | D9: 1021.320298 | S9: 0.9830917446 | U9: =NA() ->  | W9: 3
B10: 4 | C10: 2004-01-06 | D10: 1003.897024 | S10: 0.4216908996 | U10: =NA() ->  | W10: 4
B11: 5 | C11: 2004-01-07 | D11: 1005.137673 | S11: 0.5770956573 | U11: =NA() ->  | W11: 5
B12: 6 | C12: 2004-01-08 | D12: 985.2173717 | S12: 0.4523486569 | U12: =NA() ->  | W12: 6
B13: 7 | C13: 2004-01-09 | D13: 961.8560008 | S13: 0.3413812776 | U13: =NA() ->  | W13: 7
B14: 8 | C14: 2004-01-12 | D14: 968.6593407 | S14: 0.8613053267 | U14: =NA() ->  | W14: 8
B15: 9 | C15: 2004-01-13 | D15: 943.3714885 | S15: 0.2805063262 | U15: =NA() ->  | W15: 9
B16: 10 | C16: 2004-01-14 | D16: 940.4330446 | S16: 0.4821053141 | U16: =NA() ->  | W16: 10
B17: 11 | C17: 2004-01-15 | D17: 928.4079673 | S17: 0.4618801498 | U17: =NA() ->  | W17: 11
B18: 12 | C18: 2004-01-16 | D18: 955.2839367 | S18: 0.904491573 | U18: =NA() ->  | W18: 12
B19: 13 | C19: 2004-01-19 | D19: 933.3470061 | S19: 0.4161302527 | U19: =NA() ->  | W19: 13
B20: 14 | C20: 2004-01-20 | D20: 955.2444835 | S20: 0.8178259001 | U20: =NA() ->  | W20: 14
B21: 15 | C21: 2004-01-21 | D21: 947.2742844 | S21: 0.4411737444 | U21: =NA() ->  | W21: 15
B22: 16 | C22: 2004-01-22 | D22: 931.7875916 | S22: 0.3351243996 | U22: =NA() ->  | W22: 16
B23: 17 | C23: 2004-01-23 | D23: 943.7696574 | S23: 0.7437243924 | U23: =NA() ->  | W23: 17
B24: 18 | C24: 2004-01-26 | D24: 939.7934271 | S24: 0.2217919602 | U24: =NA() ->  | W24: 18
B25: 19 | C25: 2004-01-27 | D25: 947.1160751 | S25: 0.9603422133 | U25: =NA() ->  | W25: 19
B26: 20 | C26: 2004-01-28 | D26: 958.2392762 | S26: 0.6100541749 | U26: =NA() ->  | W26: 20
B27: 21 | C27: 2004-01-29 | D27: 930.9610568 | S27: 0.09122570691 | U27: =NA() ->  | W27: 21
B28: 22 | C28: 2004-01-30 | D28: 958.2322339 | S28: 0.8349242255 | U28: =NA() ->  | W28: 22
B29: 23 | C29: 2004-02-02 | D29: 981.8421244 | F29: Trendtest (gesamte Zeitreihe) | S29: 0.979543656 | U29: =NA() ->  | W29: 23
B30: 24 | C30: 2004-02-03 | D30: 976.5627372 | F30: Daten zur Berechnung | G30: =INTERCEPT(D7:D256,$W$7:$W$256) -> 871.2913545 | H30: =INDEX(LINEST(D7:D256,$W$7:$W$256,1,1),4,1) -> 614.9651919 | I30: =RSQ(D7:D256,$W$7:$W$256) -> 0.712618768 | J30: =INDEX(LINEST(D7:D256,$W$7:$W$256,1,1),2,1) -> 0.0612518517 | S30: 0.4693136144 | U30: =NA() ->  | W30: 24
B31: 25 | C31: 2004-02-04 | D31: 979.0777255 | G31: =SLOPE(D7:D256,$W$7:$W$256) -> 1.518953538 | H31: =FDIST(ABS(H30),1,COUNT(D7:D256)-2) -> 4.226607202e-69 | I31: =G31/J30 -> 24.79849173 | J31: =TDIST(ABS(I31),COUNT(D7:D256)-1,2) -> 3.232700947e-69 | S31: 0.6665043104 | U31: =NA() ->  | W31: 25
B32: 26 | C32: 2004-02-05 | D32: 968.2959555 | F32: Trend-Percentage | G32: =SIGN(G31)*I30 -> 0.712618768 | S32: 0.460647559 | U32: =NA() ->  | W32: 26
B33: 27 | C33: 2004-02-06 | D33: 960.7067588 | S33: 0.3367832136 | U33: =NA() ->  | W33: 27
B34: 28 | C34: 2004-02-09 | D34: 954.3405282 | F34: Trendtest (40 Tage) | S34: 0.4919405763 | U34: =NA() ->  | W34: 28
B35: 29 | C35: 2004-02-10 | D35: 932.2763155 | F35: Daten zur Berechnung | G35: =INTERCEPT(D217:D256,$W$217:$W$256) -> 846.7496071 | H35: =INDEX(LINEST(D217:D256,$W$217:$W$256,1,1),4,1) -> 14.3151639 | I35: =RSQ(D217:D256,$W$217:$W$256) -> 0.2736331655 | J35: =INDEX(LINEST(D217:D256,$W$217:$W$256,1,1),2,1) -> 0.486185794 | S35: 0.08796805285 | U35: =NA() ->  | W35: 29
B36: 30 | C36: 2004-02-11 | D36: 949.9254364 | G36: =SLOPE(D217:D256,$W$217:$W$256) -> 1.83950269 | H36: =FDIST(ABS(H35),1,COUNT(D217:D256)-2) -> 0.0005337007484 | I36: =G36/J35 -> 3.783538542 | J36: =TDIST(ABS(I36),COUNT(D217:D256)-1,2) -> 0.0005200233786 | S36: 0.5535614262 | U36: =NA() ->  | W36: 30
B37: 31 | C37: 2004-02-12 | D37: 966.3955535 | F37: Trend-Percentage | G37: =SIGN(G36)*I35 -> 0.2736331655 | S37: 0.5195562899 | U37: =NA() ->  | W37: 31
B38: 32 | C38: 2004-02-13 | D38: 941.4916391 | S38: 0.01263904185 | U38: =NA() ->  | W38: 32
B39: 33 | C39: 2004-02-16 | D39: 951.1127757 | S39: 0.9726803547 | U39: =NA() ->  | W39: 33
B40: 34 | C40: 2004-02-17 | D40: 933.6381434 | S40: 0.01084317259 | U40: =NA() ->  | W40: 34
B41: 35 | C41: 2004-02-18 | D41: 951.217054 | S41: 0.9635467805 | U41: =NA() ->  | W41: 35
B42: 36 | C42: 2004-02-19 | D42: 947.4765612 | S42: 0.4203923333 | U42: =NA() ->  | W42: 36
B43: 37 | C43: 2004-02-20 | D43: 969.4414016 | S43: 0.7374657777 | U43: =NA() ->  | W43: 37
B44: 38 | C44: 2004-02-23 | D44: 979.0684227 | S44: 0.7829028839 | U44: =NA() ->  | W44: 38
B45: 39 | C45: 2004-02-24 | D45: 989.2957692 | S45: 0.7012970726 | U45: =NA() ->  | W45: 39
B46: 40 | C46: 2004-02-25 | D46: 969.1370315 | S46: 0.4085575724 | U46: =NA() ->  | W46: 40
B47: 41 | C47: 2004-02-26 | D47: 986.5571795 | S47: 0.9798351739 | U47: =NA() ->  | W47: 41
B48: 42 | C48: 2004-02-27 | D48: 960.4508501 | S48: 0.2102967472 | U48: =NA() ->  | W48: 42
B49: 43 | C49: 2004-03-01 | D49: 982.0144459 | S49: 0.8516966833 | U49: =NA() ->  | W49: 43
B50: 44 | C50: 2004-03-02 | D50: 993.0949462 | S50: 0.8178046498 | U50: =NA() ->  | W50: 44
B51: 45 | C51: 2004-03-03 | D51: 1006.64133 | S51: 0.5875240503 | U51: =NA() ->  | W51: 45
B52: 46 | C52: 2004-03-04 | D52: 1025.200893 | S52: 0.7804138389 | U52: =NA() ->  | W52: 46
B53: 47 | C53: 2004-03-05 | D53: 1030.234931 | S53: 0.781587654 | U53: =NA() ->  | W53: 47
B54: 48 | C54: 2004-03-08 | D54: 1024.475668 | S54: 0.1514042404 | U54: =NA() ->  | W54: 48
B55: 49 | C55: 2004-03-09 | D55: 1027.069274 | S55: 0.9376287869 | U55: =NA() ->  | W55: 49
B56: 50 | C56: 2004-03-10 | D56: 1043.958369 | S56: 0.6712690735 | U56: =NA() ->  | W56: 50
B57: 51 | C57: 2004-03-11 | D57: 1017.609114 | S57: 0.1187045437 | U57: =NA() ->  | W57: 51
B58: 52 | C58: 2004-03-12 | D58: 1006.179543 | S58: 0.3083614514 | U58: =NA() ->  | W58: 52
B59: 53 | C59: 2004-03-15 | D59: 1001.674918 | S59: 0.3410394785 | U59: =NA() ->  | W59: 53
B60: 54 | C60: 2004-03-16 | D60: 1004.11324 | S60: 0.953314244 | U60: =NA() ->  | W60: 54
B61: 55 | C61: 2004-03-17 | D61: 974.3956113 | S61: 0.451805522 | U61: =NA() ->  | W61: 55
B62: 56 | C62: 2004-03-18 | D62: 973.5934655 | S62: 0.1563632078 | U62: =NA() ->  | W62: 56
B63: 57 | C63: 2004-03-19 | D63: 948.6134063 | S63: 0.07163435608 | U63: =NA() ->  | W63: 57
B64: 58 | C64: 2004-03-22 | D64: 956.8055791 | S64: 0.8003817639 | U64: =NA() ->  | W64: 58
B65: 59 | C65: 2004-03-23 | D65: 960.1656246 | S65: 0.8858954441 | U65: =NA() ->  | W65: 59
B66: 60 | C66: 2004-03-24 | D66: 969.5394339 | S66: 0.9423297223 | U66: =NA() ->  | W66: 60
B67: 61 | C67: 2004-03-25 | D67: 988.9210525 | S67: 0.8342112548 | U67: =NA() ->  | W67: 61
B68: 62 | C68: 2004-03-26 | D68: 990.7795813 | S68: 0.7546468125 | U68: =NA() ->  | W68: 62
B69: 63 | C69: 2004-03-29 | D69: 1004.159861 | S69: 0.9466154098 | U69: =NA() ->  | W69: 63
B70: 64 | C70: 2004-03-30 | D70: 1019.037217 | S70: 0.5795486912 | U70: =NA() ->  | W70: 64
B71: 65 | C71: 2004-03-31 | D71: 1034.915515 | S71: =RAND() -> 0.8327966165 | U71: =NA() ->  | W71: 65
B72: =B71+1 -> 66 | C72: 2004-04-01 | D72: =IF(S72>$D$1,D71+D71*RAND()/$S$2,IF(S72<$D$1,D71-D71*RAND()/$S$2)) -> 1027.933223 | S72: 0.2654269192 | U72: =NA() ->  | W72: =W71+1 -> 66
B73: 67 | C73: 2004-04-02 | D73: 999.9234572 | S73: 0.436469075 | U73: =NA() ->  | W73: 67
B74: 68 | C74: 2004-04-05 | D74: 1008.745119 | S74: 0.9516033402 | U74: =NA() ->  | W74: 68
B75: 69 | C75: 2004-04-06 | D75: 987.3985674 | S75: 0.200691028 | U75: =NA() ->  | W75: 69
B76: 70 | C76: 2004-04-07 | D76: 963.9186442 | S76: 0.0808894137 | U76: =NA() ->  | W76: 70
B77: 71 | C77: 2004-04-08 | D77: 961.0279709 | S77: 0.04041997332 | U77: =NA() ->  | W77: 71
B78: 72 | C78: 2004-04-09 | D78: 935.6671463 | S78: 0.1065503214 | U78: =NA() ->  | W78: 72
B79: 73 | C79: 2004-04-12 | D79: 945.2429078 | S79: 0.620894117 | U79: =NA() ->  | W79: 73
B80: 74 | C80: 2004-04-13 | D80: 929.1826256 | S80: 0.1936870935 | U80: =NA() ->  | W80: 74
B81: 75 | C81: 2004-04-14 | D81: 911.8137181 | S81: 0.4717474408 | U81: =NA() ->  | W81: 75
B82: 76 | C82: 2004-04-15 | D82: 938.472041 | S82: 0.7829779878 | U82: =NA() ->  | W82: 76
B83: 77 | C83: 2004-04-16 | D83: 929.8277099 | S83: 0.2011702409 | U83: =NA() ->  | W83: 77
B84: 78 | C84: 2004-04-19 | D84: 906.4051185 | S84: 0.06903667595 | U84: =NA() ->  | W84: 78
B85: 79 | C85: 2004-04-20 | D85: 907.9470405 | S85: 0.5556918258 | U85: =NA() ->  | W85: 79
B86: 80 | C86: 2004-04-21 | D86: 907.6450827 | S86: 0.499131752 | U86: =NA() ->  | W86: 80
B87: 81 | C87: 2004-04-22 | D87: 914.4738 | S87: 0.6201822874 | U87: =NA() ->  | W87: 81
B88: 82 | C88: 2004-04-23 | D88: 890.9649152 | S88: 0.3114097789 | U88: =NA() ->  | W88: 82
B89: 83 | C89: 2004-04-26 | D89: 892.5360445 | S89: 0.7246430467 | U89: =NA() ->  | W89: 83
B90: 84 | C90: 2004-04-27 | D90: 905.9727744 | S90: 0.6666697125 | U90: =NA() ->  | W90: 84
B91: 85 | C91: 2004-04-28 | D91: 883.4268114 | S91: 0.4970320115 | U91: =NA() ->  | W91: 85
B92: 86 | C92: 2004-04-29 | D92: 885.7936511 | S92: 0.6735945469 | U92: =NA() ->  | W92: 86
B93: 87 | C93: 2004-04-30 | D93: 882.4375803 | S93: 0.294570607 | U93: =NA() ->  | W93: 87
B94: 88 | C94: 2004-05-03 | D94: 901.2665809 | S94: 0.9385023992 | U94: =NA() ->  | W94: 88
B95: 89 | C95: 2004-05-04 | D95: 904.0317059 | S95: 0.9127492094 | U95: =NA() ->  | W95: 89
B96: 90 | C96: 2004-05-05 | D96: 931.059665 | S96: 0.9150950991 | U96: =NA() ->  | W96: 90
B97: 91 | C97: 2004-05-06 | D97: 947.5295704 | S97: 0.5277954708 | U97: =NA() ->  | W97: 91
B98: 92 | C98: 2004-05-07 | D98: 965.7895853 | S98: 0.9997659142 | U98: =NA() ->  | W98: 92
B99: 93 | C99: 2004-05-10 | D99: 992.1928121 | S99: 0.8640950118 | U99: =NA() ->  | W99: 93
B100: 94 | C100: 2004-05-11 | D100: 1007.80876 | S100: 0.5846760247 | U100: =NA() ->  | W100: 94
B101: 95 | C101: 2004-05-12 | D101: 1014.448272 | S101: 0.5653731731 | U101: =NA() ->  | W101: 95
B102: 96 | C102: 2004-05-13 | D102: 999.3699912 | S102: 0.3565530112 | U102: =NA() ->  | W102: 96
B103: 97 | C103: 2004-05-14 | D103: 980.0831899 | S103: 0.2729358892 | U103: =NA() ->  | W103: 97
B104: 98 | C104: 2004-05-17 | D104: 989.3909852 | S104: 0.9732427818 | U104: =NA() ->  | W104: 98
B105: 99 | C105: 2004-05-18 | D105: 1000.065063 | S105: 0.7383616054 | U105: =NA() ->  | W105: 99
B106: 100 | C106: 2004-05-19 | D106: 999.1016087 | S106: 0.2987709296 | U106: =NA() ->  | W106: 100
B107: 101 | C107: 2004-05-20 | D107: 1003.613027 | S107: 0.5223752818 | U107: =NA() ->  | W107: 101
B108: 102 | C108: 2004-05-21 | D108: 1021.598353 | S108: 0.6195528961 | U108: =NA() ->  | W108: 102
B109: 103 | C109: 2004-05-24 | D109: 1034.070385 | S109: 0.6477514417 | U109: =NA() ->  | W109: 103
B110: 104 | C110: 2004-05-25 | D110: 1041.329746 | S110: 0.9451305637 | U110: =NA() ->  | W110: 104
B111: 105 | C111: 2004-05-26 | D111: 1027.989402 | S111: 0.09526645211 | U111: =NA() ->  | W111: 105
B112: 106 | C112: 2004-05-27 | D112: 1008.914016 | S112: 0.1462277375 | U112: =NA() ->  | W112: 106
B113: 107 | C113: 2004-05-28 | D113: 1000.788227 | S113: 0.2058209574 | U113: =NA() ->  | W113: 107
B114: 108 | C114: 2004-05-31 | D114: 971.8645805 | S114: 0.05427895901 | U114: =NA() ->  | W114: 108
B115: 109 | C115: 2004-06-01 | D115: 964.0872293 | S115: 0.2540658387 | U115: =NA() ->  | W115: 109
B116: 110 | C116: 2004-06-02 | D116: 975.7348701 | S116: 0.6700510524 | U116: =NA() ->  | W116: 110
B117: 111 | C117: 2004-06-03 | D117: 997.6011379 | S117: 0.7493454097 | U117: =NA() ->  | W117: 111
B118: 112 | C118: 2004-06-04 | D118: 971.9775088 | S118: 0.2651039303 | U118: =NA() ->  | W118: 112
B119: 113 | C119: 2004-06-07 | D119: 952.6343319 | S119: 0.4156469075 | U119: =NA() ->  | W119: 113
B120: 114 | C120: 2004-06-08 | D120: 978.7122648 | S120: 0.8477759807 | U120: =NA() ->  | W120: 114
B121: 115 | C121: 2004-06-09 | D121: 950.6841959 | S121: 0.4850575526 | U121: =NA() ->  | W121: 115
B122: 116 | C122: 2004-06-10 | D122: 928.3004735 | S122: 0.0895477896 | U122: =NA() ->  | W122: 116
B123: 117 | C123: 2004-06-11 | D123: 945.9287928 | S123: 0.6371832399 | U123: =NA() ->  | W123: 117
B124: 118 | C124: 2004-06-14 | D124: 932.2551463 | S124: 0.2564529646 | U124: =NA() ->  | W124: 118
B125: 119 | C125: 2004-06-15 | D125: 926.5516483 | S125: 0.2655847327 | U125: =NA() ->  | W125: 119
B126: 120 | C126: 2004-06-16 | D126: 915.5988618 | S126: 0.04133501102 | U126: =NA() ->  | W126: 120
B127: 121 | C127: 2004-06-17 | D127: 897.9402175 | S127: 0.2283095215 | U127: =NA() ->  | W127: 121
B128: 122 | C128: 2004-06-18 | D128: 910.7121705 | S128: 0.758270726 | U128: =NA() ->  | W128: 122
B129: 123 | C129: 2004-06-21 | D129: 929.1102288 | S129: 0.5506627961 | U129: =NA() ->  | W129: 123
B130: 124 | C130: 2004-06-22 | D130: 920.1903788 | S130: 0.1963899508 | U130: =NA() ->  | W130: 124
B131: 125 | C131: 2004-06-23 | D131: 912.7558526 | S131: 0.3394189461 | U131: =NA() ->  | W131: 125
B132: 126 | C132: 2004-06-24 | D132: 924.2874938 | S132: 0.9529747072 | U132: =NA() ->  | W132: 126
B133: 127 | C133: 2004-06-25 | D133: 943.1804582 | S133: 0.727675782 | U133: =NA() ->  | W133: 127
B134: 128 | C134: 2004-06-28 | D134: 965.3192313 | S134: 0.7972067859 | U134: =NA() ->  | W134: 128
B135: 129 | C135: 2004-06-29 | D135: 936.347166 | S135: =RAND() -> 0.1754264047 | U135: =NA() ->  | W135: 129
B136: =B135+1 -> 130 | C136: 2004-06-30 | D136: =IF(S136>$D$1,D135+D135*RAND()/$S$2,IF(S136<$D$1,D135-D135*RAND()/$S$2)) -> 964.3948635 | S136: 0.5145749106 | U136: =NA() ->  | W136: =W135+1 -> 130
B137: 131 | C137: 2004-07-01 | D137: 936.2364836 | S137: 0.193576145 | U137: =NA() ->  | W137: 131
B138: 132 | C138: 2004-07-02 | D138: 932.0535817 | S138: 0.1304459492 | U138: =NA() ->  | W138: 132
B139: 133 | C139: 2004-07-05 | D139: 954.2803384 | S139: 0.6584835435 | U139: =NA() ->  | W139: 133
B140: 134 | C140: 2004-07-06 | D140: 968.4036997 | S140: 0.7313960741 | U140: =NA() ->  | W140: 134
B141: 135 | C141: 2004-07-07 | D141: 995.7695071 | S141: 0.5481198299 | U141: =NA() ->  | W141: 135
B142: 136 | C142: 2004-07-08 | D142: 1003.001288 | S142: 0.7688401617 | U142: =NA() ->  | W142: 136
B143: 137 | C143: 2004-07-09 | D143: 995.7091649 | S143: 0.4456561181 | U143: =NA() ->  | W143: 137
B144: 138 | C144: 2004-07-12 | D144: 982.7481012 | S144: 0.06550312354 | U144: =NA() ->  | W144: 138
B145: 139 | C145: 2004-07-13 | D145: 976.7168251 | S145: 0.4850084227 | U145: =NA() ->  | W145: 139
B146: 140 | C146: 2004-07-14 | D146: 967.9450435 | S146: 0.1525873965 | U146: =NA() ->  | W146: 140
B147: 141 | C147: 2004-07-15 | D147: 959.8919084 | S147: 0.1040563108 | U147: =NA() ->  | W147: 141
B148: 142 | C148: 2004-07-16 | D148: 967.8838229 | S148: 0.9016719089 | U148: =NA() ->  | W148: 142
B149: 143 | C149: 2004-07-19 | D149: 982.4716002 | S149: 0.8643278464 | U149: =NA() ->  | W149: 143
B150: 144 | C150: 2004-07-20 | D150: 973.5304804 | S150: 0.4845044318 | U150: =NA() ->  | W150: 144
B151: 145 | C151: 2004-07-21 | D151: 1001.116868 | S151: 0.6590811507 | U151: =NA() ->  | W151: 145
B152: 146 | C152: 2004-07-22 | D152: 1004.944335 | S152: 0.9673446913 | U152: =NA() ->  | W152: 146
B153: 147 | C153: 2004-07-23 | D153: 993.3733243 | S153: 0.0463772366 | U153: =NA() ->  | W153: 147
B154: 148 | C154: 2004-07-26 | D154: 1004.562682 | S154: 0.7255797123 | U154: =NA() ->  | W154: 148
B155: 149 | C155: 2004-07-27 | D155: 1033.288397 | S155: 0.8972798062 | U155: =NA() ->  | W155: 149
B156: 150 | C156: 2004-07-28 | D156: 1055.416941 | S156: 0.7226529831 | U156: =NA() ->  | W156: 150
B157: 151 | C157: 2004-07-29 | D157: 1055.100469 | S157: 0.118905363 | U157: =NA() ->  | W157: 151
B158: 152 | C158: 2004-07-30 | D158: 1042.889484 | S158: 0.2127568912 | U158: =NA() ->  | W158: 152
B159: 153 | C159: 2004-08-02 | D159: 1032.576929 | S159: 0.3529439949 | U159: =NA() ->  | W159: 153
B160: 154 | C160: 2004-08-03 | D160: 1062.019551 | S160: 0.6893703303 | U160: =NA() ->  | W160: 154
B161: 155 | C161: 2004-08-04 | D161: 1032.550318 | S161: 0.1156097216 | U161: =NA() ->  | W161: 155
B162: 156 | C162: 2004-08-05 | D162: 1039.250816 | S162: 0.946180958 | U162: =NA() ->  | W162: 156
B163: 157 | C163: 2004-08-06 | D163: 1053.975525 | S163: 0.5669876501 | U163: =NA() ->  | W163: 157
B164: 158 | C164: 2004-08-09 | D164: 1042.225884 | S164: 0.05575528252 | U164: =NA() ->  | W164: 158
B165: 159 | C165: 2004-08-10 | D165: 1030.654843 | S165: 0.1560236614 | U165: =NA() ->  | W165: 159
B166: 160 | C166: 2004-08-11 | D166: 1042.839165 | S166: 0.9885113863 | U166: =NA() ->  | W166: 160
B167: 161 | C167: 2004-08-12 | D167: 1027.432402 | S167: 0.0005335452042 | U167: =NA() ->  | W167: 161
B168: 162 | C168: 2004-08-13 | D168: 1050.22488 | S168: 0.9942916987 | U168: =NA() ->  | W168: 162
B169: 163 | C169: 2004-08-16 | D169: 1080.269141 | S169: 0.6115554414 | U169: =NA() ->  | W169: 163
B170: 164 | C170: 2004-08-17 | D170: 1109.217965 | S170: 0.7527845982 | U170: =NA() ->  | W170: 164
B171: 165 | C171: 2004-08-18 | D171: 1133.390124 | S171: 0.7175808568 | U171: =NA() ->  | W171: 165
B172: 166 | C172: 2004-08-19 | D172: 1131.392236 | S172: 0.2887463575 | U172: =NA() ->  | W172: 166
B173: 167 | C173: 2004-08-20 | D173: 1139.14443 | S173: 0.5260839155 | U173: =NA() ->  | W173: 167
B174: 168 | C174: 2004-08-23 | D174: 1161.308802 | S174: 0.6414348151 | U174: =NA() ->  | W174: 168
B175: 169 | C175: 2004-08-24 | D175: 1136.798982 | S175: 0.09588474707 | U175: =NA() ->  | W175: 169
B176: 170 | C176: 2004-08-25 | D176: 1149.449222 | S176: 0.622028023 | U176: =NA() ->  | W176: 170
B177: 171 | C177: 2004-08-26 | D177: 1135.09371 | S177: 0.2501669148 | U177: =NA() ->  | W177: 171
B178: 172 | C178: 2004-08-27 | D178: 1159.929586 | S178: 0.9167124375 | U178: =NA() ->  | W178: 172
B179: 173 | C179: 2004-08-30 | D179: 1190.054323 | S179: 0.8280945913 | U179: =NA() ->  | W179: 173
B180: 174 | C180: 2004-08-31 | D180: 1181.313778 | S180: 0.3867754995 | U180: =NA() ->  | W180: 174
B181: 175 | C181: 2004-09-01 | D181: 1191.982505 | S181: 0.8834216376 | U181: =NA() ->  | W181: 175
B182: 176 | C182: 2004-09-02 | D182: 1219.736524 | S182: 0.5577170603 | U182: =NA() ->  | W182: 176
B183: 177 | C183: 2004-09-03 | D183: 1192.471573 | S183: 0.4684458654 | U183: =NA() ->  | W183: 177
B184: 178 | C184: 2004-09-06 | D184: 1207.134582 | S184: 0.6480170601 | U184: =NA() ->  | W184: 178
B185: 179 | C185: 2004-09-07 | D185: 1205.135906 | S185: 0.09766553045 | U185: =NA() ->  | W185: 179
B186: 180 | C186: 2004-09-08 | D186: 1200.841029 | S186: 0.4251956749 | U186: =NA() ->  | W186: 180
B187: 181 | C187: 2004-09-09 | D187: 1203.89209 | S187: 0.9721788376 | U187: =NA() ->  | W187: 181
B188: 182 | C188: 2004-09-10 | D188: 1188.83586 | S188: 0.4457634583 | U188: =NA() ->  | W188: 182
B189: 183 | C189: 2004-09-13 | D189: 1215.445014 | S189: 0.9803120634 | U189: =NA() ->  | W189: 183
B190: 184 | C190: 2004-09-14 | D190: 1217.196011 | S190: 0.6158008155 | U190: =NA() ->  | W190: 184
B191: 185 | C191: 2004-09-15 | D191: 1232.510187 | S191: 0.7275383142 | U191: =NA() ->  | W191: 185
B192: 186 | C192: 2004-09-16 | D192: 1223.308097 | S192: 0.3740239547 | U192: =NA() ->  | W192: 186
B193: 187 | C193: 2004-09-17 | D193: 1207.170389 | S193: 0.2911236306 | U193: =NA() ->  | W193: 187
B194: 188 | C194: 2004-09-20 | D194: 1179.920746 | S194: 0.2351125979 | U194: =NA() ->  | W194: 188
B195: 189 | C195: 2004-09-21 | D195: 1169.581745 | S195: 0.1549655886 | U195: =NA() ->  | W195: 189
B196: 190 | C196: 2004-09-22 | D196: 1135.202144 | S196: 0.3974172592 | U196: =NA() ->  | W196: 190
B197: 191 | C197: 2004-09-23 | D197: 1152.394604 | S197: 0.8163770326 | U197: =NA() ->  | W197: 191
B198: 192 | C198: 2004-09-24 | D198: 1178.340539 | S198: 0.7903355464 | U198: =NA() ->  | W198: 192
B199: 193 | C199: 2004-09-27 | D199: 1162.253226 | S199: =RAND() -> 0.09606127927 | U199: =NA() ->  | W199: 193
B200: =B199+1 -> 194 | C200: 2004-09-28 | D200: =IF(S200>$D$1,D199+D199*RAND()/$S$2,IF(S200<$D$1,D199-D199*RAND()/$S$2)) -> 1189.952993 | S200: 0.7684130696 | U200: =NA() ->  | W200: =W199+1 -> 194
B201: 195 | C201: 2004-09-29 | D201: 1201.146489 | S201: 0.7206326984 | U201: =NA() ->  | W201: 195
B202: 196 | C202: 2004-09-30 | D202: 1188.803748 | S202: 0.2469131188 | U202: =NA() ->  | W202: 196
... 54 more rows
